bitfinex/quotes_BTCUSD_20220207
["timestamp","ask_amount","ask_price","bid_price","bid_amount"]
[1644197519042,0.05955021,42003.0,41999.0,0.25982611]
[1644197519492,0.05980818,42003.0,41999.0,0.25982611]
[1644197520083,0.29818972,42003.0,41999.0,0.25982611]
[1644197520487,0.29818972,42003.0,41997.0,0.0003]
[1644197520488,0.0478,42002.0,41997.0,0.0003]
[1644197520686,0.30324532,42002.0,41997.0,0.0003]
[1644197520890,0.5969,41998.0,41997.0,0.0003]
[1644197521089,0.5969,41998.0,41995.0,8.8723358]
[1644197521090,0.96361634,41998.0,41995.0,8.8607358]
[1644197521287,0.90321507,41996.0,41995.0,8.82398529]
[1644197521488,0.93288493,41996.0,41995.0,9.05871931]
[1644197521693,1.03288493,41996.0,41995.0,9.05871931]
[1644197521887,1.05101507,41996.0,41995.0,9.05871931]
[1644197522186,1.55101507,41996.0,41995.0,9.05871931]
[1644197522386,1.45101507,41996.0,41995.0,9.05871931]
[1644197522586,1.1447,41996.0,41995.0,9.05871931]
[1644197522786,1.49997008,41996.0,41995.0,9.05871931]
[1644197523230,1.29015445,41996.0,41995.0,9.02525266]
[1644197523632,1.19015445,41996.0,41995.0,9.02525266]
[1644197523832,1.29015445,41996.0,41995.0,9.02525266]
[1644197524033,1.19015445,41996.0,41995.0,9.02525266]
[1644197524833,0.69015445,41996.0,41995.0,9.02525266]
[1644197525234,1.76108929,41996.0,41995.0,9.02525266]
[1644197525535,0.69015445,41996.0,41995.0,9.02531266]
[1644197525933,0.69015445,41996.0,41995.0,9.09539776]
[1644197526136,0.30076006,41996.0,41995.0,9.14539776]
[1644197526336,0.04545445,41996.0,41995.0,9.14539776]
[1644197527186,0.00025797,41998.0,41996.0,0.95]
[1644197527386,0.00045583,41998.0,41997.0,1.34444527]
[1644197527588,0.00045583,41998.0,41997.0,1.05]
[1644197527987,0.00045583,41998.0,41997.0,0.05]
[1644197528386,0.25530561,42006.0,41997.0,0.05]
[1644197528589,0.00045613,42000.0,41999.0,0.05]
[1644197528887,0.00045613,42000.0,41999.0,0.34878995]
[1644197529187,0.00045613,42000.0,41999.0,0.17806769]
[1644197529586,0.25557769,42007.0,41999.0,0.17806769]
[1644197529786,0.00045613,42002.0,41999.0,0.17806769]
[1644197529987,0.00045613,42002.0,42000.0,0.1]
[1644197530587,0.25557769,42007.0,42000.0,0.1]
[1644197530832,0.00045613,42003.0,42000.0,0.1]
[1644197531936,0.00027208,42007.0,41999.0,0.17806769]
[1644197532133,0.0004572,42004.0,41999.0,0.17806769]
[1644197532534,0.0004572,42004.0,42001.0,0.1]
[1644197532735,0.0004572,42004.0,42002.0,0.22329676]
[1644197533135,0.47623744,42007.0,42002.0,0.22329676]
[1644197533336,0.0004572,42005.0,42002.0,0.22329676]
[1644197534338,0.22434993,42006.0,42002.0,0.22329676]
[1644197534588,0.22480713,42006.0,42002.0,0.22329676]
[1644197534786,0.0004572,42006.0,42002.0,0.22329676]
[1644197535385,0.05027208,42007.0,42002.0,0.22329676]
[1644197535786,0.00045582,42006.0,42002.0,0.22329676]
[1644197535986,0.00045582,42006.0,42003.0,0.05]
[1644197536185,0.00045582,42006.0,42002.0,0.22329676]
[1644197536389,0.00045582,42006.0,42005.0,0.05]
[1644197536586,0.25557769,42007.0,42005.0,0.05]
[1644197536786,0.00027208,42007.0,42002.0,0.22329676]
[1644197536985,0.00045582,42006.0,42002.0,0.22329676]
[1644197537188,0.00045582,42006.0,42002.0,0.27329676]
[1644197537386,0.20467994,42006.0,42003.0,0.05]
[1644197537786,0.25422412,42006.0,42003.0,0.05]
[1644197538429,0.25422412,42006.0,42003.0,0.1]
[1644197538834,0.25422412,42006.0,42003.0,0.05]
[1644197539031,0.05,42006.0,42002.0,0.22329676]
[1644197539232,0.20422412,42004.0,42002.0,0.22329676]
[1644197539433,0.0978,42003.0,42002.0,0.22329676]
[1644197539834,0.0478,42003.0,42002.0,0.22329676]
[1644197541834,1.47568324,42000.0,41999.0,0.19244958]
[1644197542283,1.47568324,42000.0,41999.0,0.24244958]
[1644197543886,1.52568324,42000.0,41999.0,0.19244958]
[1644197544085,1.52568324,42000.0,41999.0,0.29244958]
[1644197544086,1.47568324,42000.0,41999.0,0.29244958]
[1644197545734,1.47568324,42000.0,41999.0,0.36026733]
[1644197546338,0.42539622,42011.0,41999.0,0.36026733]
[1644197546339,0.44723749,42020.0,42017.0,1.93334153]
[1644197546538,0.51108709,42018.0,42017.0,1.11560218]
[1644197546836,0.93904009,42018.0,42017.0,1.11560218]
[1644197547035,1.19848048,42018.0,42017.0,0.57043935]
[1644197548537,0.99857909,42018.0,42017.0,0.57043935]
[1644197548739,0.380153,42018.0,42017.0,0.57043935]
[1644197548938,0.330153,42018.0,42017.0,0.57043935]
[1644197549137,0.00162212,42019.0,42017.0,0.57043935]
[1644197551090,0.00162212,42019.0,42017.0,0.56090143]
[1644197551291,0.24836504,42019.0,42017.0,0.56090143]
[1644197551493,0.00162212,42019.0,42017.0,0.56090143]
[1644197552290,0.03625071,42025.0,42017.0,0.63420547]
[1644197552497,0.00108832,42022.0,42021.0,0.24072039]
[1644197552894,0.00108832,42022.0,42021.0,0.29072039]
[1644197553092,0.00108832,42022.0,42021.0,0.24072039]
[1644197554142,0.00108832,42022.0,42017.0,0.56090143]
[1644197554940,0.00108832,42022.0,42020.0,0.1]
[1644197554941,0.00158687,42022.0,42020.0,0.1]
[1644197555141,0.00158687,42022.0,42021.0,0.24840732]
[1644197555344,0.15954978,42024.0,42021.0,0.24840732]
[1644197555543,0.15954978,42024.0,42022.0,0.1]
[1644197557387,0.1953394,42023.0,42021.0,6e-05]
[1644197557583,0.1953394,42023.0,42017.0,0.58242035]
[1644197557797,0.19559788,42023.0,42017.0,0.58242035]
[1644197557987,0.17594913,42023.0,42017.0,0.58242035]
[1644197558982,0.17594913,42023.0,42022.0,0.24543154]
[1644197559183,0.17569065,42023.0,42022.0,0.24543154]
[1644197559585,0.50584365,42023.0,42022.0,0.24543154]
[1644197559788,0.27349065,42023.0,42017.0,0.56090143]
[1644197559986,0.20398907,42022.0,42017.0,0.56090143]
[1644197560185,0.00025848,42022.0,42017.0,0.56090143]
[1644197560386,0.00025848,42023.0,42021.0,0.15]
[1644197560588,0.20500423,42024.0,42021.0,0.15]
[1644197560589,0.20526271,42024.0,42021.0,0.15]
[1644197560838,0.20500423,42024.0,42023.0,0.1]
[1644197561038,0.20580613,42024.0,42023.0,0.1]
[1644197561238,0.00225848,42026.0,42023.0,0.43116023]
[1644197561442,0.002,42026.0,42023.0,0.43116023]
[1644197561643,0.002,42026.0,42025.0,0.05]
[1644197564239,0.0001,42026.0,42025.0,0.05]
[1644197564991,0.00091016,42031.0,42027.0,0.05]
[1644197565187,0.00091016,42031.0,42030.0,0.09741963]
[1644197565389,1.016e-05,42032.0,42031.0,1.05]
[1644197565588,0.02469775,42038.0,42033.0,0.8]
[1644197565890,0.01069775,42039.0,42037.0,0.33241971]
[1644197566087,0.01069775,42039.0,42038.0,0.04741963]
[1644197566287,0.01069775,42039.0,42037.0,0.28500008]
[1644197566488,0.01069775,42039.0,42038.0,0.04741963]
[1644197567487,0.00069775,42039.0,42038.0,0.04741963]
[1644197567889,0.00069775,42039.0,42037.0,0.23500008]
[1644197568338,0.00069775,42039.0,42033.0,0.07132861]
[1644197568938,0.00069775,42039.0,42038.0,0.09741963]
[1644197569339,0.00069775,42039.0,42035.0,0.09741963]
[1644197569539,0.00069775,42039.0,42033.0,0.02164189]
[1644197569540,0.00054637,42038.0,42033.0,0.02164189]
[1644197569938,0.00054637,42038.0,42035.0,0.25706617]
[1644197570338,0.00069775,42039.0,42035.0,0.25706617]
[1644197570539,0.06149725,42043.0,42035.0,0.25706617]
[1644197570541,0.00116164,42044.0,42036.0,0.89741963]
[1644197570739,0.00016512,42039.0,42036.0,0.89741963]
[1644197571339,0.00016512,42039.0,42036.0,0.04741963]
[1644197571539,0.26895408,42043.0,42036.0,0.04741963]
[1644197571739,0.26895408,42043.0,42035.0,0.2921247]
[1644197571995,0.00054843,42040.0,42035.0,0.2921247]
[1644197572189,0.00054843,42040.0,42036.0,0.04741963]
[1644197572889,0.00116164,42042.0,42036.0,0.04741963]
[1644197573089,0.04670344,42046.0,42036.0,0.04741963]
[1644197573692,0.26761971,42043.0,42036.0,0.04741963]
[1644197574490,0.04451007,42046.0,42036.0,0.04741963]
[1644197574890,0.04451007,42046.0,42035.0,0.2921247]
[1644197575090,0.04451007,42046.0,42036.0,0.04741963]
[1644197575491,0.21282338,42043.0,42036.0,0.04741963]
[1644197575739,0.0478,42042.0,42036.0,0.04741963]
[1644197576639,0.04796441,42042.0,42036.0,0.04741963]
[1644197576841,0.04796441,42042.0,42035.0,0.2921247]
[1644197577042,0.4,42041.0,42029.0,0.13642815]
[1644197577243,0.4,42041.0,42028.0,1.01361963]
[1644197577244,0.00258037,42036.0,42028.0,1.01361963]
[1644197577444,0.01997043,42033.0,42028.0,1.01361963]
[1644197577645,0.0478,42032.0,42028.0,0.04741963]
[1644197577844,0.26946902,42031.0,42028.0,0.04741963]
[1644197578046,0.26946902,42031.0,42026.0,0.468]
[1644197578047,0.05038037,42030.0,42026.0,0.368]
[1644197578245,0.05038037,42030.0,42025.0,0.3654]
[1644197578645,0.0478,42030.0,42027.0,0.04741963]
[1644197579508,0.0428,42030.0,42027.0,0.04741963]
[1644197579698,0.01997043,42033.0,42028.0,0.24269022]
[1644197579898,0.02023049,42033.0,42028.0,0.24269022]
[1644197580099,0.02023049,42033.0,42028.0,0.23769022]
[1644197580301,0.02023049,42033.0,42032.0,0.09741963]
[1644197580499,0.01997043,42033.0,42032.0,0.09741963]
[1644197581299,0.00026006,42038.0,42032.0,0.04741963]
[1644197581500,0.00026006,42038.0,42028.0,0.33769022]
[1644197581501,0.21128709,42039.0,42030.0,0.00054913]
[1644197581705,0.00026006,42038.0,42031.0,0.05]
[1644197582001,0.21128709,42039.0,42031.0,0.05]
[1644197582202,0.00026006,42038.0,42031.0,0.05]
[1644197582404,0.00258037,42034.0,42028.0,0.28510985]
[1644197583340,0.25176203,42032.0,42028.0,0.23769022]
[1644197583539,0.00258037,42034.0,42028.0,0.23769022]
[1644197583540,0.00026006,42033.0,42028.0,0.23769022]
[1644197583738,0.00284043,42034.0,42028.0,0.23769022]
[1644197583938,0.00026006,42033.0,42028.0,0.23769022]
[1644197584138,0.00284043,42036.0,42028.0,0.23769022]
[1644197584341,0.00026006,42033.0,42028.0,0.23769022]
[1644197584537,0.2173216,42035.0,42028.0,0.23769022]
[1644197584737,0.21758166,42035.0,42028.0,0.23769022]
[1644197584938,0.21758166,42035.0,42028.0,0.23823875]
[1644197585537,0.00258037,42033.0,42028.0,0.00054853]
[1644197585738,0.00258037,42033.0,42026.0,0.04296816]
[1644197585739,0.38335168,42033.0,42026.0,0.04296816]
[1644197585938,0.0478,42032.0,42026.0,0.04296816]
[1644197586137,0.04806006,42032.0,42027.0,0.05]
[1644197586338,0.0478,42032.0,42025.0,0.3654]
[1644197586539,0.00026006,42036.0,42030.0,0.05]
[1644197586739,0.00026006,42032.0,42030.0,0.05]
[1644197586997,0.00026006,42036.0,42030.0,0.05]
[1644197587190,0.00703184,42037.0,42030.0,0.05]
[1644197587390,0.04806006,42036.0,42030.0,0.05]
[1644197587591,0.0478,42036.0,42030.0,0.05]
[1644197587792,0.04806006,42036.0,42030.0,0.09296816]
[1644197588291,0.0478,42036.0,42030.0,0.09296816]
[1644197588691,0.04796452,42036.0,42030.0,0.09296816]
[1644197589092,0.04822458,42036.0,42030.0,0.09296816]
[1644197589293,0.04796452,42036.0,42030.0,0.09296816]
[1644197589694,0.00026006,42036.0,42029.0,0.23834361]
[1644197589896,0.00054841,42036.0,42030.0,0.05]
[1644197590094,0.00054841,42036.0,42029.0,0.23834361]
[1644197590293,0.00080847,42036.0,42029.0,0.23834361]
[1644197590494,0.00054841,42036.0,42029.0,0.23834361]
[1644197590739,0.00054841,42036.0,42029.0,0.29783461]
[1644197590939,0.00054841,42036.0,42030.0,0.04296816]
[1644197590940,0.00026006,42036.0,42030.0,0.04296816]
[1644197591138,0.00054841,42036.0,42030.0,0.09296816]
[1644197592144,0.00026006,42038.0,42030.0,0.09296816]
[1644197592342,0.00054841,42036.0,42030.0,0.09296816]
[1644197592543,0.00054841,42036.0,42033.0,0.04296816]
[1644197592742,0.00054841,42036.0,42029.0,0.29783461]
[1644197592942,0.00080847,42036.0,42030.0,0.05]
[1644197593142,0.00054841,42036.0,42034.0,0.04296816]
[1644197593342,0.0072919,42039.0,42031.0,0.09296816]
[1644197593543,0.00054841,42036.0,42031.0,0.09296816]
[1644197594342,0.00054841,42036.0,42029.0,0.29783461]
[1644197594343,0.00054841,42036.0,42034.0,0.04296816]
[1644197594593,0.00026006,42039.0,42035.0,0.30518923]
[1644197594794,0.00052078,42036.0,42034.0,0.14296816]
[1644197595591,0.00026006,42037.0,42034.0,0.14296816]
[1644197595791,0.00052078,42037.0,42035.0,0.1973995]
[1644197596592,0.00052078,42037.0,42035.0,0.2568825]
[1644197596793,0.00026006,42039.0,42035.0,0.2568825]
[1644197596992,0.0003,42040.0,42038.0,0.04296816]
[1644197597299,0.00026006,42039.0,42038.0,0.09296816]
[1644197597492,0.0003,42040.0,42038.0,0.09296816]
[1644197597692,0.0003,42040.0,42038.0,0.15244716]
[1644197598242,0.0003,42040.0,42035.0,0.1973995]
[1644197598444,0.00056006,42040.0,42035.0,0.1973995]
[1644197598643,0.0003,42040.0,42035.0,0.1973995]
[1644197598842,0.00056006,42040.0,42035.0,0.1973995]
[1644197599042,0.0003,42040.0,42035.0,0.1973995]
[1644197599243,0.00056006,42040.0,42038.0,0.04296816]
[1644197599442,0.00080411,42040.0,42036.0,0.059481]
[1644197599642,0.00080411,42040.0,42038.0,0.09296816]
[1644197600445,0.0003,42040.0,42038.0,0.04296816]
[1644197600745,0.0003,42040.0,42035.0,0.29036766]
[1644197600948,0.00703184,42039.0,42035.0,0.1973995]
[1644197601145,0.00056006,42040.0,42035.0,0.1973995]
[1644197601445,0.0003,42040.0,42035.0,0.1973995]
[1644197601645,0.00703184,42039.0,42035.0,0.1973995]
[1644197601846,0.27499858,42039.0,42035.0,0.1973995]
[1644197602089,0.27525864,42039.0,42035.0,0.1973995]
[1644197602293,0.00026006,42039.0,42035.0,0.1973995]
[1644197602490,0.00080524,42040.0,42035.0,0.1973995]
[1644197602686,0.00026006,42039.0,42035.0,0.1973995]
[1644197602887,0.00056006,42040.0,42035.0,0.1973995]
[1644197603090,0.00026006,42039.0,42035.0,0.1973995]
[1644197603289,0.00080524,42040.0,42038.0,0.05]
[1644197603488,0.00026006,42039.0,42035.0,0.1973995]
[1644197603687,0.00026006,42039.0,42034.0,0.09296816]
[1644197603688,0.00080524,42040.0,42034.0,0.09296816]
[1644197603888,0.00026006,42039.0,42034.0,0.14296816]
[1644197604090,0.00056006,42040.0,42034.0,0.14296816]
[1644197604289,0.00026006,42039.0,42034.0,0.14296816]
[1644197604489,0.28911601,42041.0,42034.0,0.14296816]
[1644197604690,0.00703184,42038.0,42034.0,0.14296816]
[1644197605096,0.00026065,42038.0,42034.0,0.14296816]
[1644197605390,0.20389842,42040.0,42034.0,0.05]
[1644197605590,0.20389842,42039.0,42034.0,0.05]
[1644197605841,0.20363777,42039.0,42034.0,0.05]
[1644197606441,0.20363777,42039.0,42034.0,0.09296816]
[1644197606741,0.20363777,42039.0,42037.0,0.04296816]
[1644197606941,0.20361763,42039.0,42038.0,0.05]
[1644197607143,0.20361763,42039.0,42035.0,0.19596605]
[1644197607341,0.40771936,42039.0,42035.0,0.19596605]
[1644197607543,0.40771936,42039.0,42034.0,0.05]
[1644197607747,0.20410173,42038.0,42031.0,0.05]
[1644197607942,0.20436238,42038.0,42035.0,0.05]
[1644197608143,0.20410173,42038.0,42035.0,0.05]
[1644197608343,0.20410173,42038.0,42037.0,0.04296816]
[1644197608543,0.20410173,42039.0,42037.0,0.04296816]
[1644197608744,0.20410173,42039.0,42038.0,0.29829191]
[1644197609344,0.20410173,42039.0,42038.0,0.24829191]
[1644197610392,0.20410173,42039.0,42038.0,0.34126007]
[1644197610589,0.20410173,42039.0,42038.0,0.29829191]
[1644197610890,0.20410173,42039.0,42038.0,0.34126007]
[1644197612792,0.20490954,42041.0,42038.0,0.34126007]
[1644197612995,0.20464889,42041.0,42038.0,0.34126007]
[1644197613542,0.20464889,42041.0,42037.0,0.05]
[1644197613740,0.20410173,42040.0,42036.0,0.04296816]
[1644197613941,0.20436238,42040.0,42036.0,0.04296816]
[1644197614238,0.20435759,42041.0,42039.0,0.05]
[1644197614440,0.20409694,42041.0,42039.0,0.05]
[1644197615042,0.20409694,42040.0,42039.0,0.05]
[1644197615441,0.20409694,42041.0,42039.0,0.05]
[1644197615645,0.2046441,42042.0,42039.0,0.05]
[1644197615842,0.20490475,42042.0,42039.0,0.05]
[1644197616042,0.20409694,42041.0,42039.0,0.05]
[1644197616242,0.20435759,42042.0,42039.0,0.05]
[1644197616442,0.20409694,42042.0,42039.0,0.05]
[1644197618596,0.21138943,42043.0,42039.0,0.05]
[1644197618797,0.21193659,42043.0,42039.0,0.05]
[1644197619198,0.20500838,42042.0,42039.0,0.05]
[1644197619996,0.00703184,42041.0,42039.0,0.05]
[1644197620400,0.00703184,42041.0,42031.0,0.00054853]
[1644197620401,0.20400735,42033.0,42031.0,0.05054853]
[1644197620842,0.20826889,42037.0,42031.0,0.05]
[1644197620843,0.0478,42032.0,42031.0,0.05]
[1644197622342,0.0328,42032.0,42031.0,0.05]
[1644197622543,0.0182,42032.0,42031.0,0.05]
[1644197631746,0.19126128,42037.0,42031.0,0.05]
[1644197632003,0.23906128,42037.0,42035.0,0.05]
[1644197632297,0.0478,42037.0,42035.0,0.05]
[1644197632497,0.00026065,42039.0,42035.0,0.05]
[1644197632498,0.20409694,42039.0,42035.0,0.05]
[1644197632697,0.20435759,42039.0,42038.0,0.09296816]
[1644197632897,0.20409694,42039.0,42038.0,0.09296816]
[1644197633097,0.44190697,42039.0,42038.0,0.09296816]
[1644197633518,0.23781003,42039.0,42038.0,0.09296816]
[1644197634100,0.23781003,42039.0,42035.0,0.05]
[1644197634297,0.44216762,42039.0,42034.0,0.27941298]
[1644197634498,0.44190697,42039.0,42035.0,0.05]
[1644197635298,0.44893881,42039.0,42035.0,0.05]
[1644197635741,0.20409694,42038.0,42035.0,0.05]
[1644197636747,0.21112878,42039.0,42035.0,0.05]
[1644197637146,0.20409694,42039.0,42030.0,0.45935186]
[1644197637347,0.20435759,42040.0,42030.0,0.45935186]
[1644197637545,0.20409694,42040.0,42030.0,0.45935186]
[1644197637746,0.20435759,42040.0,42030.0,0.45935186]
[1644197637948,0.26770754,42038.0,42030.0,0.209491]
[1644197638147,0.26770754,42038.0,42030.0,0.109491]
[1644197639151,0.20409694,42040.0,42030.0,0.109491]
[1644197639499,0.20409694,42040.0,42030.0,0.159491]
[1644197639691,0.00026065,42040.0,42030.0,0.159491]
[1644197639890,0.20435759,42041.0,42030.0,0.159491]
[1644197640090,0.25791474,42039.0,42030.0,0.159491]
[1644197640491,0.25791474,42039.0,42030.0,0.1]
[1644197640692,0.05,42038.0,42030.0,0.05]
[1644197641694,0.00054843,42037.0,42030.0,0.05]
[1644197641893,0.00054843,42037.0,42030.0,0.109491]
[1644197642096,0.00054843,42037.0,42031.0,0.118979]
[1644197642493,0.05,42038.0,42031.0,0.118979]
[1644197642693,0.00016456,42037.0,42031.0,0.118979]
[1644197643342,0.00016456,42037.0,42030.0,0.168979]
[1644197643544,0.00016456,42037.0,42030.0,0.05]
[1644197643742,0.05,42038.0,42030.0,0.05]
[1644197643943,0.00054838,42037.0,42030.0,0.05]
[1644197644145,0.00054838,42037.0,42031.0,0.24068662]
[1644197644748,0.00054838,42037.0,42030.0,0.05]
[1644197644946,0.51432149,42039.0,42032.0,0.059493]
[1644197645144,0.00054839,42037.0,42032.0,0.059493]
[1644197646145,0.05,42039.0,42032.0,0.059493]
[1644197646345,0.00054839,42037.0,42032.0,0.059493]
[1644197646997,0.19463118,42036.0,42032.0,0.059493]
[1644197647399,0.19463118,42036.0,42030.0,0.168982]
[1644197648195,0.00016456,42037.0,42031.0,0.05949094]
[1644197648594,0.05,42038.0,42030.0,0.168982]
[1644197648793,0.00054781,42037.0,42030.0,0.168982]
[1644197649194,0.248298,42037.0,42030.0,0.168982]
[1644197649794,0.24775019,42037.0,42030.0,0.168982]
[1644197649998,0.24829799,42037.0,42030.0,0.168982]
[1644197650195,0.0005478,42037.0,42030.0,0.168982]
[1644197650396,0.0005478,42037.0,42030.0,0.22847402]
[1644197650842,0.0005478,42037.0,42030.0,0.168982]
[1644197651045,0.05,42038.0,42030.0,0.168982]
[1644197651246,0.24506441,42035.0,42030.0,0.168982]
[1644197652045,0.24506441,42035.0,42030.0,0.05]
[1644197652447,0.05,42031.0,42026.0,0.17217411]
[1644197652650,0.05,42029.0,42024.0,0.02133783]
[1644197652846,0.05,42026.0,42024.0,0.02133783]
[1644197653047,0.0978,42026.0,42024.0,0.02133783]
[1644197653247,0.2884751,42026.0,42024.0,0.02133783]
[1644197653446,0.44009159,42026.0,42024.0,0.02133783]
[1644197653646,0.44009159,42026.0,42021.0,0.05]
[1644197653848,0.29296523,42025.0,42021.0,0.05]
[1644197654048,0.0478,42024.0,42021.0,0.05]
[1644197654249,0.0478,42024.0,42021.0,0.02]
[1644197654702,0.0978,42024.0,42021.0,0.02]
[1644197658545,0.0978,42024.0,42020.0,0.00054797]
[1644197658844,0.26022135,42021.0,42020.0,0.00054797]
[1644197659044,0.30802135,42021.0,42020.0,0.00054797]
[1644197659446,0.57916228,42021.0,42017.0,0.56090143]
[1644197659645,0.57916228,42021.0,42018.0,0.00054799]
[1644197660047,0.05,42019.0,42018.0,0.00054799]
[1644197660247,0.37584669,42019.0,42018.0,0.00054799]
[1644197660449,0.57975757,42019.0,42018.0,0.00054799]
[1644197660646,1.17665757,42019.0,42017.0,0.56090143]
[1644197660847,0.31123255,42018.0,42017.0,0.56090143]
[1644197661149,0.35903255,42018.0,42017.0,0.56090143]
[1644197661348,0.68918555,42018.0,42017.0,0.56090143]
[1644197661547,1.28608555,42018.0,42017.0,0.56090143]
[1644197661748,1.33608555,42018.0,42017.0,0.56090143]
[1644197663501,1.33608555,42018.0,41998.0,0.69766732]
[1644197663502,0.68118576,42012.0,41995.0,7.63468627]
[1644197663697,0.68118576,42012.0,41997.0,0.00022023]
[1644197663698,0.05,41998.0,41997.0,0.00022023]
[1644197663897,0.0978,41998.0,41996.0,0.00022023]
[1644197664098,0.0978,41998.0,41995.0,7.6349065]
[1644197664695,0.24753579,41996.0,41995.0,7.6349065]
[1644197664895,0.29533579,41996.0,41995.0,7.63468627]
[1644197665096,0.0478,41996.0,41995.0,7.63468627]
[1644197665499,0.02046051,42005.0,41995.0,7.63468627]
[1644197665500,0.02046051,42005.0,41995.0,7.62968627]
[1644197665760,0.0478,42004.0,41996.0,0.3041488]
[1644197665954,0.0478,42004.0,42000.0,0.06889535]
[1644197666252,0.0478,42004.0,42001.0,0.20352579]
[1644197667156,0.02046051,42005.0,42002.0,0.32119512]
[1644197667355,0.02046051,42005.0,42002.0,0.1]
[1644197667756,0.01887421,42009.0,42002.0,0.1]
[1644197667957,0.01887421,42009.0,42003.0,0.05]
[1644197668360,0.01887421,42009.0,42008.0,0.26226859]
[1644197668560,0.01887421,42009.0,42006.0,0.22782119]
[1644197670794,0.15,42014.0,42006.0,0.22782119]
[1644197671003,0.15,42014.0,42005.0,0.00050198]
[1644197671004,0.05,42007.0,42005.0,0.00050198]
[1644197671203,0.377953,42006.0,42005.0,0.00050198]
[1644197671405,0.0478,42006.0,41996.0,0.00022023]
[1644197671603,0.05,42008.0,41996.0,0.00022023]
[1644197671796,0.05,42008.0,41996.0,0.36782023]
[1644197671996,0.05,42008.0,42001.0,0.20229364]
[1644197672198,0.26180149,42007.0,42001.0,0.20229364]
[1644197672398,0.18969487,42007.0,42001.0,0.20229364]
[1644197672598,0.05,42006.0,41997.0,0.00022023]
[1644197672796,0.05,42006.0,41996.0,0.36782023]
[1644197672996,0.05,42006.0,41997.0,0.00022023]
[1644197673248,0.18969487,42007.0,41996.0,0.36782023]
[1644197673651,0.05,42006.0,41997.0,0.24097751]
[1644197673847,0.05,42006.0,41997.0,0.24119774]
[1644197674249,0.05,42006.0,41997.0,0.23619774]
[1644197674449,0.18969487,42007.0,41997.0,0.23619774]
[1644197674651,0.04971358,42006.0,41997.0,0.23619774]
[1644197675050,0.04971358,42006.0,42004.0,0.26473597]
[1644197675451,0.04971358,42008.0,42004.0,0.26473597]
[1644197675650,0.04971358,42008.0,42005.0,0.00028642]
[1644197675952,0.04971358,42008.0,42004.0,0.26473597]
[1644197675956,0.01880391,42010.0,42004.0,0.26473597]
[1644197676350,0.01880391,42010.0,42005.0,0.00028642]
[1644197676551,0.01880391,42010.0,42005.0,0.00082284]
[1644197677394,0.01880391,42010.0,42005.0,0.00028642]
[1644197677595,0.01880391,42010.0,42005.0,0.00082283]
[1644197677795,0.018554,42011.0,42006.0,0.05]
[1644197677995,0.018554,42011.0,42007.0,0.00028642]
[1644197678195,0.018554,42011.0,42006.0,0.04028642]
[1644197678901,0.018554,42011.0,42006.0,0.00051301]
[1644197678902,0.05,42007.0,42006.0,0.00051301]
[1644197679196,0.64618596,42007.0,42006.0,0.00051301]
[1644197679396,0.69398596,42007.0,42006.0,0.00051301]
[1644197679794,0.69398596,42007.0,41996.0,0.00022023]
[1644197679795,1.00065822,42007.0,41996.0,0.00022023]
[1644197679995,0.05,42000.0,41996.0,0.00022023]
[1644197680195,0.0478,41999.0,41996.0,0.00022023]
[1644197680395,0.0478,41999.0,41995.0,7.6299065]
[1644197680852,0.0478,42004.0,41995.0,7.6299065]
[1644197681055,0.25596792,42011.0,41996.0,0.22883418]
[1644197681253,0.63231132,42023.0,41998.0,0.05952564]
[1644197681255,0.05,42009.0,41998.0,0.05952564]
[1644197681457,0.05,42012.0,42007.0,0.06726347]
[1644197681654,0.02133653,42009.0,42007.0,0.06726347]
[1644197682354,0.02133653,42009.0,42008.0,0.19721928]
[1644197682553,0.05,42024.0,42009.0,1.05]
[1644197682757,0.00045342,42025.0,42021.0,0.08213217]
[1644197683355,0.00045342,42025.0,42022.0,0.30530713]
[1644197683555,0.05,42030.0,42022.0,0.25307608]
[1644197683755,0.31564822,42031.0,42023.0,0.05]
[1644197683756,0.00045358,42025.0,42023.0,0.05]
[1644197684597,0.24285883,42030.0,42023.0,0.05]
[1644197684797,0.24285883,42030.0,42022.0,0.25307608]
[1644197684798,0.05,42024.0,42022.0,0.25307608]
[1644197684999,0.05,42024.0,42019.0,0.3638]
[1644197685397,0.00045358,42026.0,42019.0,0.3638]
[1644197685596,0.00045358,42026.0,42021.0,0.05]
[1644197685896,0.05,42028.0,42021.0,0.05]
[1644197686098,0.00044965,42025.0,42021.0,0.05]
[1644197686297,0.00044965,42025.0,42022.0,0.2566099]
[1644197687096,0.05,42028.0,42022.0,0.2566099]
[1644197687297,0.31564822,42031.0,42022.0,0.2566099]
[1644197687607,0.00044965,42026.0,42022.0,0.2566099]
[1644197688100,0.00044965,42026.0,42023.0,0.32000959]
[1644197688351,0.0182718,42031.0,42023.0,0.32000959]
[1644197688651,0.00044965,42026.0,42023.0,0.32000959]
[1644197688851,0.00044965,42026.0,42023.0,0.42000959]
[1644197689353,0.00044965,42026.0,42024.0,0.059492]
[1644197689551,0.0182718,42031.0,42025.0,0.32477287]
[1644197689754,0.00045053,42027.0,42025.0,0.32477287]
[1644197689951,0.00045053,42027.0,42025.0,0.42477287]
[1644197690852,0.00045053,42028.0,42026.0,0.31437558]
[1644197691054,0.00045053,42028.0,42015.0,0.118995]
[1644197691055,0.24797483,42028.0,42015.0,0.118995]
[1644197691254,0.29202033,42027.0,42016.0,0.3699]
[1644197691453,0.24797483,42028.0,42018.0,0.05]
[1644197691655,0.2476883,42028.0,42018.0,0.05]
[1644197691853,0.05,42032.0,42018.0,0.05]
[1644197692099,0.3735963,42031.0,42026.0,0.19727071]
[1644197692298,0.2634808,42030.0,42026.0,0.19727071]
[1644197692900,0.23918322,42029.0,42026.0,0.19727071]
[1644197693499,0.23918322,42029.0,42019.0,0.2199]
[1644197693700,0.23918322,42029.0,42019.0,0.1199]
[1644197694207,0.26361611,42030.0,42019.0,0.1199]
[1644197694208,0.20619576,42022.0,42019.0,0.1199]
[1644197694401,0.20619576,42022.0,42018.0,0.05]
[1644197694402,0.47412463,42022.0,42020.0,0.00051737]
[1644197694601,0.0478,42021.0,42020.0,0.00051737]
[1644197695400,0.0478,42021.0,42017.0,0.26395689]
[1644197695604,0.01911043,42026.0,42017.0,0.26395689]
[1644197695851,0.01911043,42026.0,42021.0,0.05]
[1644197696251,0.01911043,42026.0,42024.0,0.24250973]
[1644197697749,0.00044963,42030.0,42024.0,0.24250973]
[1644197697950,0.63386756,42031.0,42024.0,0.24250973]
[1644197698149,0.00044963,42030.0,42024.0,0.24250973]